lending/lending_fUSD_20250131
["ID","MTS","AMOUNT","RATE_DAILY","PERIOD"]
[351115677,1738342244994,-505.81699639,0.00016438,2]
[351115678,1738342245004,-500.0,0.00016438,2]
[351115679,1738342245014,-500.0,0.00016438,2]
[351115680,1738342245023,-500.0,0.00016438,2]
[351115681,1738342245032,-500.0,0.00016438,2]
[351115682,1738342245042,-993.9,0.00016438,2]
[351115683,1738342245052,-4214.69,0.00016438,2]
[351115684,1738342245061,-500.0,0.00016438,2]
[351115685,1738342245071,-500.0,0.00016438,2]
[351115686,1738342245080,-500.0,0.00016438,2]
[351115687,1738342245089,-607.58,0.00016438,2]
[351115688,1738342245099,-500.0,0.00016438,2]
[351115689,1738342245108,-928.84,0.00016438,2]
[351115690,1738342245118,-500.0,0.00016438,2]
[351115691,1738342245128,-2629.44,0.00016438,2]
[351115692,1738342245137,-652.41,0.00016438,2]
[351115693,1738342245147,-514.59390031,0.00016438,2]
[351115694,1738342245156,-500.0,0.00016438,2]
[351115695,1738342245165,-500.0,0.00016438,2]
[351115696,1738342245175,-500.0,0.00016438,2]
[351115697,1738342245185,-500.0,0.00016438,2]
[351115698,1738342245194,-599.97,0.00016438,2]
[351115699,1738342245203,-500.0,0.00016438,2]
[351115700,1738342245213,-2238.64,0.00016438,2]
[351115701,1738342245223,-526.87231888,0.00016438,2]
[351115702,1738342245232,-167.87248345,0.00016438,2]
[351115703,1738342245242,-500.0,0.00016438,2]
[351115704,1738342245251,-1964.96,0.00016438,2]
[351115705,1738342245260,-262.97572672,0.00016438,2]
[351115706,1738342245270,-500.0,0.00016438,2]
[351115707,1738342245279,-697.51,0.00016438,2]
[351115708,1738342245288,-640.63,0.00016438,2]
[351115709,1738342245298,-500.0,0.00016438,2]
[351115710,1738342245307,-500.0,0.00016438,2]
[351115711,1738342245317,-1888.52,0.00016438,2]
[351115712,1738342245326,-500.0,0.00016438,2]
[351115713,1738342245336,-500.0,0.00016438,2]
[351115714,1738342245346,-727.94,0.00016438,2]
[351115715,1738342245355,-500.0,0.00016438,2]
[351115716,1738342245365,-1014.48,0.00016438,2]
[351115717,1738342245376,-828.89,0.00016438,2]
[351115718,1738342245386,-508.62378819,0.00016438,2]
[351115719,1738342245396,-500.0,0.00016438,2]
[351115720,1738342245406,-500.0,0.00016438,2]
[351115721,1738342245415,-500.0,0.00016438,2]
[351115722,1738342245426,-500.0,0.00016438,2]
[351115723,1738342245435,-500.0,0.00016438,2]
[351115724,1738342245445,-1487.99,0.00016438,2]
[351115726,1738342245455,-500.0,0.00016438,2]
[351115727,1738342245465,-3222.5,0.00016438,2]
[351115728,1738342245477,-500.0,0.00016438,2]
[351115729,1738342245489,-1795.19,0.00016438,2]
[351115730,1738342245499,-500.0,0.00016438,2]
[351115731,1738342245508,-2265.6,0.00016438,2]
[351115732,1738342245518,-872.12,0.00016438,2]
[351115733,1738342245529,-500.0,0.00016438,2]
[351115734,1738342245539,-816.69,0.00016438,2]
[351115735,1738342245549,-500.0,0.00016438,2]
[351115736,1738342245558,-500.0,0.00016438,2]
[351115737,1738342245568,-500.0,0.00016438,2]
[351115738,1738342245577,-500.0,0.00016438,2]
[351115739,1738342245587,-500.0,0.00016438,2]
[351115740,1738342245596,-644.36871816,0.00016438,2]
[351115741,1738342245605,-1031.69,0.00016438,2]
[351115743,1738342245615,-500.0,0.00016438,2]
[351115744,1738342245624,-500.0,0.00016438,2]
[351115745,1738342245634,-670.33,0.00016438,2]
[351115746,1738342245643,-500.0,0.00016438,2]
[351115747,1738342245652,-500.0,0.00016438,2]
[351115748,1738342245661,-993.78,0.00016438,2]
[351115749,1738342245671,-500.0,0.00016438,2]
[351115750,1738342245680,-500.0,0.00016438,2]
[351115751,1738342245689,-2751.51,0.00016438,2]
[351115752,1738342245699,-500.0,0.00016438,2]
[351115753,1738342245708,-500.0,0.00016438,2]
[351115754,1738342245717,-1282.54,0.00016438,2]
[351115755,1738342245727,-500.0,0.00016438,2]
[351115756,1738342245736,-500.0,0.00016438,2]
[351115757,1738342245746,-500.0,0.00016438,2]
[351115758,1738342245757,-500.0,0.00016438,2]
[351115759,1738342245767,-1329.51,0.00016438,2]
[351115760,1738342245775,-508.46381252,0.00016438,2]
[351115761,1738342245785,-3525.57,0.00016438,2]
[351115762,1738342245794,-500.0,0.00016438,2]
[351115763,1738342245803,-500.0,0.00016438,2]
[351115764,1738342245814,-1305.13,0.00016438,2]
[351115765,1738342245823,-500.0,0.00016438,2]
[351115766,1738342245833,-503.91940821,0.00016438,2]
[351115767,1738342245842,-688.66,0.00016438,2]
[351115768,1738342245851,-500.0,0.00016438,2]
[351115769,1738342245861,-500.0,0.00016438,2]
[351115770,1738342245870,-841.88,0.00016438,2]
[351115771,1738342245879,-674.52,0.00016438,2]
[351115772,1738342245889,-845.67,0.00016438,2]
[351115773,1738342245898,-500.0,0.00016438,2]
[351115774,1738342245908,-374.50473567,0.00016438,2]
[351115775,1738342245917,-500.0,0.00016438,2]
[351115776,1738342245927,-500.0,0.00016438,2]
[351115777,1738342245937,-500.0,0.00016438,2]
[351115778,1738342245947,-580.04,0.00016438,2]
[351115779,1738342245957,-1244.66,0.00016438,2]
[351115780,1738342245966,-727.99,0.00016438,2]
[351115781,1738342245976,-500.0,0.00016438,2]
[351115782,1738342245985,-501.08825002,0.00016473,2]
[351115783,1738342245994,-2533.9,0.00016474,2]
[351115784,1738342246005,-590.72,0.00016474,2]
[351115785,1738342246014,-2265.53,0.00016474,2]
[351115786,1738342246023,-738.79,0.00016474,2]
[351115787,1738342246033,-500.0,0.00016474,2]
[351115788,1738342246042,-500.0,0.00016474,2]
[351115789,1738342246052,-737.08,0.00016474,2]
[351115790,1738342246069,-44703.31296215,0.00016475,2]
[351115792,1738342246392,-274053.46393785,0.00016475,2]
[351115793,1738342246402,-1000.0,0.00016475,2]
[351115794,1738342246412,-1549.91992772,0.00016521,2]
[351115795,1738342246421,-167.90870425,0.00016529,2]
[351115796,1738342246430,-1170.559,0.00016532,2]
[351115797,1738342246440,-637.0,0.00016532,2]
[351115798,1738342246449,-150.0,0.00016532,2]
[351115799,1738342246458,-3008.469,0.00016532,2]
[351115800,1738342246467,-1107.0,0.00016532,2]
[351115801,1738342246477,-1000.0,0.00016537,2]
[351115802,1738342246491,-405.51609333,0.00016574,2]
[351115803,1738342246499,-503.46728701,0.00016574,2]
[351115804,1738342246509,-500.0,0.00016574,2]
[351115805,1738342246519,-500.0,0.00016574,2]
[351115806,1738342246529,-500.0,0.00016574,2]
[351115807,1738342246538,-500.0,0.00016574,2]
[351115808,1738342246548,-500.0,0.00016574,2]
[351115809,1738342246559,-500.0,0.00016574,2]
[351115810,1738342246572,-500.0,0.00016574,2]
[351115811,1738342246581,-500.0,0.00016574,2]
[351115812,1738342246590,-500.0,0.00016574,2]
[351115813,1738342246600,-500.0,0.00016574,2]
[351115814,1738342246610,-500.0,0.00016574,2]
[351115815,1738342246619,-500.0,0.00016574,2]
[351115816,1738342246628,-500.0,0.00016574,2]
[351115817,1738342246637,-500.0,0.00016574,2]
[351115818,1738342246647,-500.0,0.00016574,2]
[351115819,1738342246657,-500.0,0.00016574,2]
[351115820,1738342246666,-500.0,0.00016574,2]
[351115821,1738342246675,-500.0,0.00016574,2]
[351115822,1738342246685,-501.52152061,0.00016574,2]
[351115823,1738342246694,-500.0,0.00016574,2]
[351115824,1738342246704,-524.75007851,0.00016574,2]
[351115825,1738342246713,-500.0,0.00016574,2]
[351115826,1738342246723,-500.0,0.00016574,2]
[351115827,1738342246732,-500.0,0.00016574,2]
[351115828,1738342246742,-500.0,0.00016574,2]
[351115829,1738342246751,-500.0,0.00016574,2]
[351115830,1738342246760,-500.0,0.00016574,2]
[351115831,1738342246769,-500.0,0.00016574,2]
[351115832,1738342246779,-543.98413662,0.00016574,2]
[351115833,1738342246788,-500.0,0.00016574,2]
[351115834,1738342246797,-500.0,0.00016574,2]
[351115835,1738342246807,-500.0,0.00016574,2]
[351115836,1738342246818,-500.0,0.00016574,2]
[351115837,1738342246827,-500.0,0.00016574,2]
[351115838,1738342246836,-500.0,0.00016574,2]
[351115839,1738342246846,-500.0,0.00016574,2]
[351115840,1738342246856,-500.0,0.00016574,2]
[351115841,1738342246865,-500.0,0.00016574,2]
[351115842,1738342246875,-500.0,0.00016574,2]
[351115843,1738342246886,-506.42532307,0.00016574,2]
[351115844,1738342246895,-500.0,0.00016574,2]
[351115845,1738342246904,-500.0,0.00016574,2]
[351115846,1738342246914,-500.0,0.00016574,2]
[351115847,1738342246924,-500.0,0.00016574,2]
[351115848,1738342246934,-500.0,0.00016574,2]
[351115849,1738342246944,-500.0,0.00016574,2]
[351115850,1738342246954,-500.0,0.00016574,2]
[351115851,1738342246964,-500.0,0.00016574,2]
[351115852,1738342246973,-500.0,0.00016574,2]
[351115853,1738342246982,-500.0,0.00016574,2]
[351115854,1738342246993,-500.0,0.00016574,2]
[351115855,1738342247002,-500.0,0.00016574,2]
[351115856,1738342247012,-500.0,0.00016574,2]
[351115857,1738342247021,-500.0,0.00016574,2]
[351115858,1738342247030,-500.0,0.00016574,2]
[351115859,1738342247039,-500.0,0.00016574,2]
[351115860,1738342247050,-500.0,0.00016574,2]
[351115861,1738342247062,-500.0,0.00016574,2]
[351115862,1738342247071,-500.0,0.00016574,2]
[351115863,1738342247080,-500.0,0.00016574,2]
[351115864,1738342247090,-500.0,0.00016574,2]
[351115865,1738342247099,-500.0,0.00016574,2]
[351115866,1738342247110,-500.0,0.00016574,2]
[351115867,1738342247120,-500.0,0.00016574,2]
[351115868,1738342247130,-500.0,0.00016574,2]
[351115869,1738342247139,-500.0,0.00016574,2]
[351115870,1738342247148,-500.0,0.00016574,2]
[351115871,1738342247157,-500.0,0.00016574,2]
[351115872,1738342247167,-500.0,0.00016574,2]
[351115873,1738342247177,-500.0,0.00016575,2]
[351115874,1738342247186,-500.0,0.00016575,2]
[351115875,1738342247195,-500.0,0.00016575,2]
[351115876,1738342247204,-561.04270112,0.00016575,2]
[351115877,1738342247214,-500.0,0.00016575,2]
[351115878,1738342247223,-500.0,0.00016575,2]
[351115879,1738342247232,-500.0,0.00016575,2]
[351115880,1738342247248,-500.0,0.00016575,2]
[351115881,1738342247259,-500.0,0.00016575,2]
[351115882,1738342247268,-500.0,0.00016575,2]
[351115883,1738342247277,-500.0,0.00016575,2]
[351115884,1738342247286,-500.32648021,0.00016575,2]
[351115885,1738342247296,-500.0,0.00016575,2]
[351115886,1738342247305,-500.0,0.00016575,2]
[351115887,1738342247317,-488.56597285,0.00016575,2]
[351115888,1738342247327,-500.0,0.00016575,2]
[351115889,1738342247339,-574.16231037,0.00016575,2]
[351115890,1738342247350,-368.4210704,0.00016575,2]
[351115891,1738342247360,-500.0,0.00016575,2]
[351115892,1738342247371,-500.0,0.00016575,2]
[351115893,1738342247381,-122.55954342,0.00016575,2]
[351115894,1738342247394,-377.44045658,0.00016575,2]
[351115895,1738342247403,-500.0,0.00016575,2]
[351115896,1738342247413,-500.0,0.00016575,2]
[351115897,1738342247422,-500.0,0.00016575,2]
[351115898,1738342247431,-264.2780309,0.00016575,2]
[351115899,1738342247440,-500.0,0.00016575,2]
[351115900,1738342247450,-500.0,0.00016575,2]
[351115901,1738342247459,-500.0,0.00016575,2]
[351115902,1738342247468,-500.0,0.00016575,2]
[351115903,1738342247479,-500.0,0.00016575,2]
[351115904,1738342247491,-446.55105057,0.00016575,2]
[351115905,1738342247516,-119.18894943,0.00016575,2]
[351115906,1738342247526,-141.25549697,0.00016575,2]
[351115907,1738342247546,-358.74450303,0.00016575,2]
[351115908,1738342247555,-500.0,0.00016575,2]
[351115909,1738342247567,-500.0,0.00016575,2]
[351115910,1738342247577,-500.0,0.00016575,2]
[351115911,1738342247586,-500.0,0.00016575,2]
[351115912,1738342247595,-500.0,0.00016575,2]
[351115913,1738342247604,-503.67998366,0.00016575,2]
[351115914,1738342247613,-799.26,0.00016575,2]
[351115915,1738342247623,-215.77637166,0.00016575,2]
[351115916,1738342247632,-500.0,0.00016575,2]
[351115917,1738342247642,-500.0,0.00016575,2]
[351115918,1738342247651,-500.0,0.00016575,2]
[351115919,1738342247661,-500.0,0.00016575,2]
[351115920,1738342247672,-503.70368938,0.00016575,2]
[351115921,1738342247682,-500.0,0.00016575,2]
[351115922,1738342247691,-500.0,0.00016575,2]
[351115923,1738342247700,-500.0,0.00016575,2]
[351115924,1738342247713,-500.0,0.00016575,2]
[351115925,1738342247723,-599.655912,0.00016575,2]
[351115926,1738342247732,-500.0,0.00016575,2]
[351115927,1738342247742,-500.0,0.00016575,2]
[351115928,1738342247752,-500.0,0.00016575,2]
[351115929,1738342247762,-500.0,0.00016575,2]
[351115930,1738342247771,-582.941315,0.00016575,2]
[351115931,1738342247780,-500.0,0.00016575,2]
[351115932,1738342247790,-847.94,0.00016575,2]
[351115933,1738342247799,-500.0,0.00016575,2]
[351115934,1738342247809,-401.42954209,0.00016575,2]
[351115935,1738342247819,-524.61,0.00016575,2]
[351115936,1738342247828,-502.47435186,0.00016575,2]
[351115937,1738342247837,-500.0,0.00016575,2]
[351115938,1738342247847,-500.0,0.00016575,2]
[351115939,1738342247857,-806.25,0.00016575,2]
[351115940,1738342247866,-791.88,0.00016575,2]
[351115941,1738342247875,-532.03713091,0.00016575,2]
[351115942,1738342247885,-705.27,0.00016575,2]
[351115943,1738342247895,-500.0,0.00016575,2]
[351115944,1738342247904,-500.0,0.00016575,2]
[351115945,1738342247913,-869.24,0.00016575,2]
[351115946,1738342247922,-719.69,0.00016575,2]
[351115947,1738342247932,-500.0,0.00016575,2]
[351115948,1738342247941,-821.32,0.00016575,2]
[351115949,1738342247950,-500.0,0.00016575,2]
[351115950,1738342247959,-500.0,0.00016575,2]
[351115951,1738342247968,-500.0,0.00016575,2]
[351115952,1738342247977,-500.0,0.00016575,2]
[351115953,1738342247987,-500.0,0.00016575,2]
[351115954,1738342247996,-905.75,0.00016575,2]
[351115955,1738342248005,-500.0,0.00016575,2]
[351115956,1738342248015,-573.01,0.00016575,2]
[351115957,1738342248024,-740.51,0.00016575,2]
[351115958,1738342248034,-500.0,0.00016575,2]
[351115959,1738342248043,-500.0,0.00016575,2]
[351115960,1738342248261,-500.0,0.00016575,2]
[351115961,1738342248271,-500.0,0.00016575,2]
[351115962,1738342248281,-507.9,0.00016575,2]
[351115963,1738342248290,-500.0,0.00016575,2]
[351115964,1738342248300,-500.0,0.00016575,2]
[351115965,1738342248310,-1105.19,0.00016575,2]
[351115966,1738342248323,-710.09,0.00016575,2]
[351115967,1738342248332,-500.0,0.00016575,2]
[351115968,1738342248342,-500.0,0.00016575,2]
[351115969,1738342248351,-500.0,0.00016575,2]
[351115970,1738342248360,-919.32,0.00016575,2]
[351115971,1738342248369,-577.81,0.00016575,2]
[351115972,1738342248379,-500.0,0.00016575,2]
[351115973,1738342248388,-500.0,0.00016575,2]
[351115974,1738342248397,-500.0,0.00016575,2]
[351115975,1738342248407,-1149.27,0.00016575,2]
[351115976,1738342248416,-500.0,0.00016575,2]
[351115977,1738342248425,-550.11,0.00016575,2]
[351115978,1738342248435,-500.0,0.00016575,2]
[351115979,1738342248444,-749.78,0.00016575,2]
[351115980,1738342248454,-500.0,0.00016575,2]
[351115981,1738342248463,-916.66,0.00016575,2]
[351115982,1738342248475,-500.0,0.00016575,2]
[351115983,1738342248486,-500.0,0.00016575,2]
[351115984,1738342248497,-523.77,0.00016575,2]
[351115985,1738342248506,-551.33,0.00016575,2]
[351115986,1738342248516,-500.0,0.00016575,2]
[351115987,1738342248528,-1072.53,0.00016575,2]
[351115988,1738342248538,-737.84,0.00016575,2]
[351115989,1738342248547,-768.71,0.00016575,2]
[351115990,1738342248557,-500.0,0.00016575,2]
[351115991,1738342248567,-500.0,0.00016575,2]
[351115992,1738342248578,-750.33,0.00016575,2]
[351115993,1738342248587,-500.0,0.00016575,2]
[351115994,1738342248597,-500.0,0.00016575,2]
[351115995,1738342248607,-500.0,0.00016575,2]
[351115996,1738342248616,-500.0,0.00016575,2]
[351115997,1738342248626,-500.0,0.00016575,2]
[351115998,1738342248636,-500.0,0.00016575,2]
[351115999,1738342248645,-514.9,0.00016575,2]
[351116000,1738342248655,-1122.13,0.00016575,2]
[351116001,1738342248666,-500.0,0.00016575,2]
[351116002,1738342248676,-500.0,0.00016575,2]
[351116003,1738342248685,-659.41,0.00016575,2]
[351116004,1738342248696,-500.0,0.00016575,2]
[351116005,1738342248706,-500.0,0.00016575,2]
[351116006,1738342248715,-310.99849529,0.00016575,2]
[351116007,1738342249215,-925.43211547,0.00015708,2]
[351116008,1738342249247,-2525.00320572,0.00015708,2]
[351116009,1738342249259,-511.16097881,0.00015708,2]
[351116010,1738342249268,-9326.51741003,0.00015767,2]
[351116011,1738342249280,-500.0,0.00015767,2]
[351116012,1738342249292,-13845.06758995,0.00015767,2]
[351116013,1738342249302,-500.0,0.00016438,2]
[351116014,1738342249312,-500.0,0.00016438,2]
[351116015,1738342249322,-500.0,0.00016438,2]
[351116016,1738342249332,-2635.76963688,0.0001652,2]
[351116017,1738342249341,-189.00150471,0.00016575,2]
[351116018,1738342249351,-623.91,0.00016575,2]
[351116019,1738342249361,-500.0,0.00016575,2]
[351116020,1738342249371,-500.0,0.00016575,2]
[351116021,1738342249380,-509.52970239,0.00016575,2]
[351116022,1738342249390,-641.85,0.00016575,2]
[351116023,1738342249399,-500.0,0.00016575,2]
[351116024,1738342249409,-1029.01,0.00016575,2]
[351116025,1738342249418,-503.70152521,0.00016575,2]
[351116026,1738342249427,-832.01,0.00016575,2]
[351116027,1738342249437,-500.0,0.00016575,2]
[351116028,1738342249446,-502.92470522,0.00016575,2]
[351116029,1738342249456,-500.0,0.00016575,2]
[351116030,1738342249465,-876.06,0.00016575,2]
[351116031,1738342249475,-500.0,0.00016575,2]
[351116032,1738342249486,-500.0,0.00016575,2]
[351116033,1738342249495,-500.0,0.00016575,2]
[351116034,1738342249505,-500.0,0.00016575,2]
[351116035,1738342249514,-500.0,0.00016575,2]
[351116036,1738342249525,-500.0,0.00016575,2]
[351116037,1738342249534,-500.0,0.00016575,2]
[351116038,1738342249544,-500.0,0.00016575,2]
[351116039,1738342249554,-558.3,0.00016575,2]
[351116040,1738342249565,-579.8,0.00016575,2]
[351116041,1738342249575,-517.43,0.00016575,2]
[351116042,1738342249584,-500.0,0.00016575,2]
[351116043,1738342249594,-500.85,0.00016575,2]
[351116044,1738342249603,-597.96108,0.00016575,2]
[351116045,1738342249611,-500.0,0.00016575,2]
[351116046,1738342249621,-289.07305686,0.00016575,2]
[351116047,1738342249630,-500.0,0.00016575,2]
[351116048,1738342249639,-670.95,0.00016575,2]
[351116049,1738342249649,-500.0,0.00016575,2]
[351116050,1738342249658,-500.0,0.00016575,2]
[351116051,1738342249668,-500.0,0.00016575,2]
[351116052,1738342249678,-500.0,0.00016575,2]
[351116053,1738342249687,-500.0,0.00016575,2]
[351116054,1738342249696,-558.52313087,0.00016575,2]
[351116055,1738342249705,-500.0,0.00016575,2]
[351116056,1738342249714,-500.0,0.00016575,2]
[351116057,1738342249723,-500.0,0.00016575,2]
[351116058,1738342249732,-500.0,0.00016575,2]
[351116059,1738342249741,-500.0,0.00016575,7]
[351116060,1738342249750,-500.0,0.00016575,2]
[351116061,1738342249759,-500.0,0.00016575,2]
[351116062,1738342249767,-500.0,0.00016575,2]
[351116063,1738342249776,-500.0,0.00016575,2]
[351116064,1738342249785,-500.0,0.00016575,2]
[351116065,1738342249794,-500.0,0.00016575,2]
[351116066,1738342249803,-500.0,0.00016575,2]
[351116067,1738342249813,-501.70048734,0.00016575,2]
[351116068,1738342249822,-500.0,0.00016575,2]
[351116069,1738342249831,-505.62925778,0.00016575,2]
[351116070,1738342249840,-447.06582982,0.00016575,2]
[351116071,1738342249849,-500.0,0.00016575,2]
[351116072,1738342249858,-511.44,0.00016575,2]
[351116073,1738342249867,-500.0,0.00016575,2]
[351116074,1738342249876,-558.07,0.00016575,2]
[351116075,1738342249886,-500.0,0.00016575,2]
[351116076,1738342249895,-500.0,0.00016575,2]
[351116077,1738342249904,-500.0,0.00016575,2]
[351116078,1738342249914,-190.88772407,0.00016575,2]
[351116079,1738342249923,-500.0,0.00016575,2]
[351116080,1738342249932,-500.0,0.00016575,2]
[351116081,1738342249941,-569.8971664,0.00016575,2]
[351116082,1738342249950,-500.0,0.00016575,2]
[351116083,1738342249960,-600.69544511,0.00016575,2]
[351116084,1738342249969,-500.0,0.00016575,2]
[351116085,1738342249978,-500.0,0.00016575,2]
[351116086,1738342249987,-500.0,0.00016575,2]
[351116087,1738342249997,-500.0,0.00016575,2]
[351116088,1738342250006,-932.44,0.00016575,2]
[351116089,1738342250015,-628.80243118,0.00016575,2]
[351116090,1738342250025,-770.85,0.00016575,2]
[351116091,1738342250035,-502.14220295,0.00016575,2]
[351116092,1738342250044,-500.0,0.00016575,2]
[351116093,1738342250054,-500.0,0.00016575,2]
[351116094,1738342250064,-507.41692495,0.00016575,2]
[351116095,1738342250073,-500.0,0.00016575,2]
[351116096,1738342250082,-500.0,0.00016575,2]
[351116097,1738342250092,-1034.02,0.00016575,2]
[351116098,1738342250101,-500.0,0.00016575,2]
[351116099,1738342250110,-199.46345426,0.00016575,2]
[351116100,1738342250119,-500.0,0.00016575,2]
[351116101,1738342250128,-537.45,0.00016575,2]
[351116102,1738342250137,-500.0,0.00016575,2]
[351116103,1738342250146,-500.0,0.00016575,2]
[351116104,1738342250156,-613.18857911,0.00016575,2]
[351116105,1738342250165,-500.0,0.00016575,2]
[351116106,1738342250174,-500.0,0.00016575,2]
[351116107,1738342250183,-500.0,0.00016575,2]
[351116108,1738342250193,-500.0,0.00016575,2]
[351116109,1738342250202,-574.53,0.00016575,2]
[351116110,1738342250212,-500.0,0.00016575,2]
[351116111,1738342250221,-500.0,0.00016575,2]
[351116112,1738342250230,-500.0,0.00016575,2]
[351116113,1738342250239,-1210.52,0.00016575,2]
[351116114,1738342250248,-500.0,0.00016575,2]
[351116115,1738342250258,-2051.75,0.00016575,2]
[351116116,1738342250267,-735.62,0.00016575,2]
[351116117,1738342250276,-505.10841534,0.00016575,2]
[351116118,1738342250285,-500.0,0.00016575,2]
[351116119,1738342250294,-500.0,0.00016575,2]
[351116120,1738342250303,-388.23341875,0.00016575,2]
[351116121,1738342250313,-558.79,0.00016575,2]
[351116122,1738342250323,-500.0,0.00016575,2]
[351116123,1738342250332,-645.36740932,0.00016575,2]
[351116124,1738342250342,-500.0,0.00016575,2]
[351116125,1738342250351,-500.0,0.00016575,2]
[351116126,1738342250362,-500.0,0.00016575,2]
[351116127,1738342250371,-500.0,0.00016575,2]
[351116128,1738342250380,-497.40891138,0.00016575,2]
[351116129,1738342250389,-500.0,0.00016575,2]
[351116130,1738342250398,-539.11070877,0.00016575,2]
[351116131,1738342250407,-500.0,0.00016575,2]
[351116132,1738342250417,-500.0,0.00016575,2]
[351116133,1738342250427,-250.8692987,0.00016575,2]
[351116134,1738342250436,-5553.43,0.00016575,2]
[351116135,1738342250445,-870.17,0.00016575,2]
[351116136,1738342250453,-849.95,0.00016575,2]
[351116137,1738342250463,-188.43302777,0.00016575,2]
[351116138,1738342250473,-500.0,0.00016575,2]
[351116139,1738342250484,-842.75,0.00016575,2]
[351116140,1738342250495,-500.0,0.00016575,2]
[351116141,1738342250504,-1427.28,0.00016575,2]
[351116142,1738342250514,-500.0,0.00016575,2]
[351116143,1738342250525,-1862.88,0.00016575,2]
[351116144,1738342250534,-500.0,0.00016575,2]
[351116145,1738342250544,-644.36,0.00016575,2]
[351116146,1738342250553,-500.0,0.00016575,2]
[351116147,1738342250563,-500.0,0.00016575,2]
[351116148,1738342250572,-946.07,0.00016575,2]
[351116149,1738342250581,-500.0,0.00016575,2]
[351116150,1738342250591,-547.94,0.00016575,2]
[351116151,1738342250600,-652.16,0.00016575,2]
[351116152,1738342250611,-606.93,0.00016575,2]
[351116153,1738342250621,-2122.68,0.00016575,2]
[351116154,1738342250630,-737.5,0.00016575,2]
[351116155,1738342250640,-500.0,0.00016575,2]
[351116156,1738342250650,-500.0,0.00016575,2]
[351116157,1738342250660,-875.05,0.00016575,2]
[351116158,1738342250669,-500.0,0.00016575,2]
[351116159,1738342250678,-500.0,0.00016575,2]
[351116160,1738342250687,-500.0,0.00016575,2]
[351116161,1738342250697,-999.27,0.00016575,2]
[351116162,1738342250706,-3624.9,0.00016575,2]
[351116163,1738342250715,-1114.2,0.00016575,2]
[351116164,1738342250724,-765.42,0.00016575,2]
[351116165,1738342250734,-500.0,0.00016575,2]
[351116166,1738342250743,-500.0,0.00016575,2]
[351116167,1738342250752,-1586.15,0.00016575,2]
[351116168,1738342250761,-500.0,0.00016575,2]
[351116169,1738342250770,-1184.78,0.00016575,2]
[351116170,1738342250780,-533.68050771,0.00016575,2]
[351116171,1738342250790,-901.83,0.00016575,2]
[351116172,1738342250800,-806.47,0.00016575,2]
[351116173,1738342250811,-708.98,0.00016575,2]
[351116174,1738342250821,-500.0,0.00016575,2]
[351116175,1738342250831,-500.0,0.00016575,2]
[351116176,1738342250840,-553.52,0.00016575,2]
[351116177,1738342250849,-500.0,0.00016575,2]
[351116178,1738342250858,-500.0,0.00016575,2]
[351116179,1738342250867,-500.0,0.00016575,2]